bitfinex/quotes_ETHUSD_20220309
["timestamp","ask_amount","ask_price","bid_price","bid_amount"]
[1646858039353,5.5,2708.9,2708.7,0.0640895]
[1646858039551,6.241,2708.9,2708.7,0.0640895]
[1646858039753,8.241,2708.9,2708.7,0.0640895]
[1646858041780,10.741,2708.9,2708.7,0.0640895]
[1646858041981,5.518,2708.8,2708.7,0.0640895]
[1646858042181,5.5,2708.7,2708.6,0.01258213]
[1646858042383,5.5,2708.7,2708.5,0.0376326]
[1646858042384,5.5,2708.6,2708.5,0.0376326]
[1646858042580,7.0366,2708.6,2708.5,0.0376326]
[1646858042782,8.0366,2708.6,2708.5,0.0376326]
[1646858042985,9.0366,2708.6,2708.5,0.0376326]
[1646858043180,9.3366,2708.6,2708.5,0.0376326]
[1646858043385,12.8366,2708.6,2708.5,0.0376326]
[1646858043785,6.42391,2708.5,2708.4,0.03813542]
[1646858043985,6.86491,2708.5,2708.4,0.03813542]
[1646858044184,3.36491,2708.5,2708.4,0.03813542]
[1646858044387,1.36491,2708.5,2708.4,0.03813542]
[1646858044585,0.92391,2708.5,2708.4,0.03813542]
[1646858044845,0.92391,2708.5,2708.4,2.68223646]
[1646858045047,3.3346074,2709.3,2708.4,6.18223646]
[1646858045252,1.0,2709.4,2708.5,1.53430685]
[1646858045450,0.029168,2709.5,2708.6,3.52808315]
[1646858045654,0.029168,2709.5,2708.7,1.53430685]
[1646858045848,0.029168,2709.5,2708.8,0.03193998]
[1646858046049,0.029168,2709.5,2708.9,1.53430685]
[1646858046050,0.952508,2709.5,2708.9,1.53430685]
[1646858046253,1.252488,2709.5,2708.9,1.53430685]
[1646858046450,0.06000076,2709.4,2708.9,1.53430685]
[1646858046650,0.06000076,2709.4,2708.4,1.14888961]
[1646858046651,0.97493996,2709.3,2708.4,1.14888961]
[1646858046850,0.05505329,2709.2,2708.4,1.14792961]
[1646858047252,0.49605329,2709.2,2708.5,1.53421888]
[1646858047552,0.0498312,2709.1,2708.5,1.53421888]
[1646858047751,0.0498312,2709.1,2708.7,0.00411778]
[1646858048053,0.9733412,2709.1,2708.8,1.53421888]
[1646858048259,0.05779361,2709.0,2708.9,1.53421888]
[1646858048888,1.22351,2709.1,2709.0,0.11558722]
[1646858049086,1.22351,2709.1,2709.0,1.6498061]
[1646858050189,1.22351,2709.1,2709.0,0.11558722]
[1646858050190,2.66451,2709.1,2709.0,0.11558722]
[1646858050589,3.66451,2709.1,2709.0,0.11558722]
[1646858051791,3.66451,2709.1,2708.8,0.00411788]
[1646858051792,5.5,2709.0,2708.8,0.00411788]
[1646858052091,1.441,2708.9,2708.8,0.00411788]
[1646858052329,0.92365,2708.8,2708.4,0.03813542]
[1646858052529,0.92365,2708.8,2708.5,1.53438534]
[1646858052729,1.92365,2708.8,2708.5,1.53438534]
[1646858053533,0.92365,2708.8,2708.5,1.53438534]
[1646858053732,0.92365,2708.8,2708.5,1.53836421]
[1646858054533,1.6,2708.9,2708.5,1.53836421]
[1646858054734,2.22346,2709.0,2708.5,1.53438534]
[1646858055033,1.22346,2709.0,2708.5,1.53836421]
[1646858055635,6.57066,2709.0,2708.5,1.53836421]
[1646858055840,6.57066,2709.0,2708.5,1.53438534]
[1646858055841,1.441,2708.9,2708.5,1.53438534]
[1646858056087,1.0,2708.8,2708.5,1.53438534]
[1646858056287,2.36472,2708.7,2708.6,0.00390189]
[1646858056486,2.66472,2708.7,2708.6,0.00390189]
[1646858056790,2.66472,2708.7,2708.5,1.43828723]
[1646858056791,2.28832,2708.7,2708.5,1.43828723]
[1646858056988,2.84732,2708.7,2708.5,1.43828723]
[1646858057390,3.14732,2708.7,2708.5,1.43828723]
[1646858057688,2.14732,2708.7,2708.5,1.43828723]
[1646858057889,3.14732,2708.7,2708.5,1.43828723]
[1646858059090,2.14732,2708.7,2708.5,1.43828723]
[1646858059293,3.14732,2708.7,2708.5,1.43828723]
[1646858059490,2.14732,2708.7,2708.5,1.43828723]
[1646858059725,3.14732,2708.7,2708.5,1.43828723]
[1646858059930,2.14732,2708.7,2708.5,1.44240512]
[1646858060131,3.14732,2708.7,2708.5,0.00411789]
[1646858060336,2.14732,2708.7,2708.5,0.00411789]
[1646858060531,3.14732,2708.7,2708.5,0.00411789]
[1646858060733,3.14732,2708.7,2708.4,0.03813542]
[1646858060734,2.14732,2708.7,2708.4,0.03813542]
[1646858060933,3.14732,2708.7,2708.5,0.00411789]
[1646858061337,3.5,2708.6,2708.5,0.00411789]
[1646858061536,3.941,2708.6,2708.5,0.00411789]
[1646858061735,2.441,2708.6,2708.5,0.00411789]
[1646858061936,4.28861,2708.6,2708.4,0.03813542]
[1646858062137,4.2124119,2708.6,2708.4,0.03813542]
[1646858062338,1.0,2708.5,2708.4,0.04225333]
[1646858062836,1.3,2708.5,2708.4,0.04225333]
[1646858063040,4.8,2708.5,2708.4,0.04225333]
[1646858063238,6.241,2708.5,2708.4,0.03813542]
[1646858063493,6.241,2708.5,2708.3,0.04566508]
[1646858063494,6.42392,2708.4,2708.3,0.04566508]
[1646858063690,10.7063877,2708.4,2708.3,0.04566508]
[1646858063883,12.7063877,2708.4,2708.3,0.04566508]
[1646858064484,5.5,2708.3,2708.2,0.04427886]
[1646858064683,5.5,2708.3,2708.2,0.05439913]
[1646858064684,6.941,2708.3,2708.2,0.05439913]
[1646858064884,2.441,2708.3,2708.2,0.05439913]
[1646858065186,1.441,2708.3,2708.2,0.05439913]
[1646858065584,0.441,2708.3,2708.2,0.0504201]
[1646858068131,2.52392,2708.4,2708.2,0.0504201]
[1646858068331,2.22392,2708.4,2708.2,0.0504201]
[1646858068536,1.92392,2708.4,2708.2,0.0504201]
[1646858068740,0.92392,2708.4,2708.2,0.0504201]
[1646858069041,1.54017878,2708.5,2708.2,0.0504201]
[1646858069238,0.24017878,2708.5,2708.2,0.0504201]
[1646858069439,0.24017878,2708.5,2708.2,0.05432644]
[1646858069937,0.92392,2708.4,2708.2,0.05432644]
[1646858070540,0.92392,2708.4,2708.2,0.0504201]
[1646858070739,0.92392,2708.4,2708.2,0.05432644]
[1646858071390,2.77151,2708.4,2708.2,0.05432644]
[1646858071593,3.5,2708.3,2708.2,0.05432644]
[1646858071793,5.81251,2708.4,2708.2,0.0504201]
[1646858071993,1.441,2708.3,2708.2,0.05433119]
[1646858072893,1.441,2708.3,2708.2,0.0504201]
[1646858074926,0.441,2708.3,2708.2,0.0504201]
[1646858075326,1.441,2708.3,2708.2,0.0504201]
[1646858076534,0.441,2708.3,2708.2,0.0504201]
[1646858076739,3.44771,2708.4,2708.2,1.58489496]
[1646858076935,3.44771,2708.4,2708.3,1.53447486]
[1646858076936,2.44771,2708.4,2708.3,1.53447486]
[1646858077134,3.44771,2708.4,2708.3,1.53447486]
[1646858077337,2.44771,2708.4,2708.3,1.53447486]
[1646858077536,3.44771,2708.4,2708.3,1.53447486]
[1646858077737,2.44771,2708.4,2708.3,1.53447486]
[1646858077936,3.44771,2708.4,2708.3,1.53447486]
[1646858078137,4.44771,2708.4,2708.3,1.5406161]
[1646858081394,7.94771,2708.4,2708.3,1.5406161]
[1646858081596,7.94771,2708.4,2708.2,0.04793363]
[1646858081597,5.5,2708.3,2708.2,0.04793363]
[1646858081895,11.441,2708.3,2708.2,0.06021611]
[1646858082531,11.441,2708.3,2708.2,0.05656134]
[1646858082730,7.941,2708.3,2708.2,0.05656134]
[1646858082931,11.441,2708.3,2708.2,0.05656134]
[1646858084135,7.941,2708.3,2708.2,0.05656134]
[1646858084338,11.441,2708.3,2708.2,0.06425312]
[1646858084537,11.470168,2708.3,2708.2,0.06425312]
[1646858084741,14.3378368,2708.3,2708.2,0.06425312]
[1646858084937,0.92406,2708.1,2708.0,0.08943798]
[1646858085138,1.66506,2708.1,2708.0,0.08943798]
[1646858085537,5.0,2708.0,2707.9,0.0488077]
[1646858085739,5.0,2707.9,2707.8,0.01164382]
[1646858085999,5.441,2707.9,2707.8,0.01164382]
[1646858086189,2.441,2707.9,2707.8,0.01164382]
[1646858086589,1.441,2707.9,2707.8,0.01164382]
[1646858087191,2.6650469,2707.9,2707.8,0.01164382]
[1646858087588,3.6650469,2707.9,2707.8,0.01164382]
[1646858088389,2.441,2707.9,2707.8,0.01164382]
[1646858088596,1.0,2707.9,2707.8,0.01164382]
[1646858088795,0.953228,2708.1,2707.8,0.01164382]
[1646858088995,0.61640977,2708.2,2707.8,0.01164382]
[1646858089193,0.1844,2708.3,2707.8,0.01164382]
[1646858089395,0.1844,2708.3,2707.8,1.11367088]
[1646858089594,0.3,2708.4,2707.8,1.11367088]
[1646858089833,1.22379,2708.5,2707.8,1.11367088]
[1646858090039,1.22379,2708.5,2707.9,0.00411817]
[1646858090238,0.9237,2708.4,2707.9,0.00411817]
[1646858090434,1.84743,2708.6,2708.0,0.68743244]
[1646858090637,1.84743,2708.6,2708.1,0.09004848]
[1646858090834,2.03183,2708.6,2708.1,0.09004848]
[1646858091033,2.03183,2708.6,2707.8,0.08904038]
[1646858091232,2.03183,2708.6,2708.0,0.00411835]
[1646858092034,3.87938,2708.6,2708.0,0.00411835]
[1646858092235,1.84759,2708.4,2707.9,0.08399046]
[1646858092434,1.84759,2708.4,2708.0,0.00411835]
[1646858093236,0.3,2708.5,2708.0,0.00411835]
[1646858093501,0.3,2708.5,2708.1,0.08847588]
[1646858093698,2.14743,2708.6,2708.1,0.08847588]
[1646858093897,1.14743,2708.6,2708.1,0.08847588]
[1646858094500,2.84729,2708.7,2708.1,0.08847588]
[1646858094698,1.9236,2708.7,2708.1,0.08847588]
[1646858095099,0.9236,2708.7,2708.1,0.08847588]
[1646858095999,1.84772,2708.5,2708.1,0.08847588]
[1646858096200,3.69545,2708.5,2708.0,0.0039949]
[1646858096602,4.07158,2708.5,2708.0,0.0039949]
[1646858096802,3.14773,2708.5,2708.0,0.0039949]
[1646858097002,2.7716,2708.4,2707.9,0.087345]
[1646858097235,2.7716,2708.4,2707.8,0.01402842]
[1646858097236,0.92386,2708.3,2708.0,0.00399475]
[1646858098238,1.84774,2708.2,2707.8,0.01402842]
[1646858098437,1.84774,2708.2,2708.0,0.00390615]
[1646858099246,3.5,2708.1,2708.0,0.00390615]
[1646858099441,4.43656,2708.2,2707.8,0.01402842]
[1646858099640,2.0,2708.1,2708.0,0.0039061]
[1646858099839,5.73656,2708.2,2708.0,0.0039061]
[1646858100243,1.0,2708.1,2708.0,0.0039061]
[1646858100640,1.0,2708.1,2707.8,0.01402842]
[1646858100842,1.0,2708.1,2708.0,0.0039061]
[1646858101088,6.66052,2708.2,2708.0,0.0039061]
[1646858101291,1.0,2708.1,2708.0,0.0039061]
[1646858101787,1.0,2708.1,2707.9,1.53475585]
[1646858101989,1.9239,2708.1,2707.9,1.5386671]
[1646858102187,1.0,2708.0,2707.9,1.5386671]
[1646858102393,1.3,2708.0,2707.9,1.5386671]
[1646858102593,1.3,2708.0,2707.8,0.01402842]
[1646858102594,6.42414,2707.9,2707.8,0.01402842]
[1646858102789,7.86514,2707.9,2707.8,0.01402842]
[1646858102994,8.86514,2707.9,2707.8,0.01402842]
[1646858103188,4.5,2707.8,2707.7,0.12535666]
[1646858103392,4.941,2707.8,2707.7,0.1534135]
[1646858103592,7.241,2707.8,2707.7,0.1534135]
[1646858104196,10.741,2707.8,2707.7,0.1534135]
[1646858104595,7.241,2707.8,2707.7,0.1534135]
[1646858105136,10.741,2707.8,2707.7,0.1534135]
[1646858105336,10.78574192,2707.8,2707.7,0.1534135]
[1646858106332,10.741,2707.8,2707.7,0.1534135]
[1646858109087,12.63588028,2707.8,2707.7,0.1534135]
[1646858110292,0.92422,2707.6,2707.5,0.0825198]
[1646858110491,1.36522,2707.6,2707.5,0.0825198]
[1646858110893,5.86522,2707.6,2707.5,0.0825198]
[1646858111291,8.2254212,2707.6,2707.5,0.0825198]
[1646858111497,8.2254212,2707.6,2707.4,0.1086058]
[1646858111498,5.5,2707.4,2707.0,0.05781425]
[1646858111693,5.5,2707.4,2707.0,0.11477797]
[1646858111694,3.941,2707.3,2707.0,0.11477797]
[1646858111894,0.92435,2707.2,2707.0,0.11477797]
[1646858112094,1.22435,2707.2,2707.0,0.11477797]
[1646858112834,1.22435,2707.2,2707.0,0.09879609]
[1646858112835,2.14867,2707.2,2707.0,0.09879609]
[1646858113036,2.14867,2707.2,2707.0,0.10279118]
[1646858113243,4.0,2707.1,2706.9,0.04275789]
[1646858113440,3.5,2707.0,2706.9,0.04275789]
[1646858113639,1.0,2707.0,2706.9,0.04275789]
[1646858113841,1.3,2707.0,2706.9,0.04275789]
[1646858114442,5.241,2707.0,2706.9,0.04275789]
[1646858114639,3.58997,2707.0,2706.9,0.0775256]
[1646858114840,7.36335,2707.0,2706.9,0.0775256]
[1646858115039,5.5,2706.9,2706.8,0.0228688]
[1646858115242,1.441,2706.9,2706.8,0.06310464]
[1646858115443,2.441,2706.9,2706.8,0.06310464]
[1646858115642,1.441,2706.9,2706.8,0.06310464]
[1646858119293,5.86547,2706.9,2706.8,0.06310464]
[1646858119737,3.36547,2706.9,2706.8,0.06310464]
[1646858119939,5.5,2706.8,2706.6,0.03552864]
[1646858120139,0.441,2706.7,2706.6,0.03552864]
[1646858120640,1.0,2706.7,2706.6,0.03552864]
[1646858121057,5.5,2706.6,2706.4,0.01863856]
[1646858121241,5.5,2706.6,2706.5,0.0136198]
[1646858121242,6.42455,2706.6,2706.5,0.0136198]
[1646858121439,8.86555,2706.6,2706.5,0.0136198]
[1646858121745,5.5,2706.5,2706.4,0.01863856]
[1646858121940,8.27386,2706.4,2706.2,0.03837336]
[1646858122147,8.27386,2706.4,2706.2,0.09098252]
[1646858122148,9.441,2706.3,2706.2,0.09098252]
[1646858122346,12.36562,2706.3,2706.2,0.09098252]
[1646858122545,5.5,2706.2,2706.0,0.11641228]
[1646858122747,6.5,2706.2,2706.1,0.0544792]
[1646858122945,7.941,2706.2,2706.1,0.0544792]
[1646858123145,5.5,2706.1,2705.9,0.03915861]
[1646858123347,1.3657,2706.0,2705.9,0.07771637]
[1646858123597,6.92351,2706.1,2706.0,0.2727027]
[1646858123795,6.941,2706.0,2705.9,0.06178844]
[1646858123994,6.941,2706.0,2705.9,0.06577004]
[1646858124191,2.441,2706.0,2705.9,0.06577004]
[1646858124393,0.92471,2705.8,2705.6,0.08508342]
[1646858124591,0.92471,2705.8,2705.7,0.14218896]
[1646858124794,0.92471,2705.8,2705.7,0.18311545]
[1646858125496,0.92471,2705.8,2705.6,0.08508342]
[1646858125697,8.441,2705.7,2705.6,0.01295096]
[1646858125899,8.441,2705.7,2705.5,0.1018484]
[1646858125900,5.5,2705.6,2705.5,0.1018484]
[1646858126099,5.941,2705.6,2705.5,0.1018484]
[1646858126396,5.42484,2705.5,2705.0,0.04303658]
[1646858126598,0.441,2705.4,2705.0,0.04303658]
[1646858126896,1.441,2705.4,2705.0,0.0642753]
[1646858127095,0.441,2705.4,2705.0,0.0642753]
[1646858127540,0.9248,2705.3,2705.0,0.0642753]
[1646858127742,2.77447,2705.3,2705.0,0.0642753]
[1646858128140,3.77447,2705.3,2705.0,0.0642753]
[1646858128340,2.7746,2705.2,2705.0,0.0642753]
[1646858128548,3.0746,2705.2,2705.0,0.0642753]
[1646858128749,4.0746,2705.2,2705.0,0.0642753]
[1646858128945,3.5156,2705.2,2705.0,0.0642753]
[1646858129146,4.5156,2705.2,2705.0,0.0642753]
[1646858129846,4.5156,2705.2,2705.0,0.06566616]
[1646858130647,4.5156,2705.2,2705.0,0.0642753]
[1646858131012,4.5156,2705.2,2705.0,0.06838451]
[1646858131900,4.5156,2705.2,2705.0,0.0642753]
[1646858132197,4.5156,2705.2,2705.0,0.06838451]
[1646858132397,4.7,2705.2,2705.0,0.06838451]
[1646858133197,4.7,2705.2,2705.0,0.0642753]
[1646858133396,4.7,2705.2,2705.0,0.06838451]
[1646858134005,4.5156,2705.2,2705.0,0.06838451]
[1646858134401,4.5156,2705.2,2705.0,0.0642753]
[1646858134601,3.5156,2705.2,2705.0,0.06826123]
[1646858135445,1.0,2705.1,2705.0,0.06826123]
[1646858135644,1.0,2705.1,2705.0,0.0642753]
[1646858135842,1.0,2705.1,2705.0,0.06826123]
[1646858136244,5.5,2705.0,2704.9,0.05906796]
[1646858136444,6.42501,2705.0,2704.9,0.05906796]
[1646858136648,8.42501,2705.0,2704.9,0.05906796]
[1646858137643,2.92501,2705.0,2704.9,0.05906796]
[1646858137844,2.92501,2705.0,2704.8,0.01650794]
[1646858137845,5.5,2704.9,2704.8,0.01650794]
[1646858138044,9.441,2704.9,2704.8,0.05617858]
[1646858138245,11.441,2704.9,2704.8,0.04716692]
[1646858138505,11.441,2704.9,2704.6,0.018796]
[1646858138506,6.42519,2704.7,2704.6,0.018796]
[1646858138698,7.86619,2704.7,2704.6,0.08741196]
[1646858139099,8.86619,2704.7,2704.6,0.037592]
[1646858139301,9.79138,2704.7,2704.6,0.037592]
[1646858139499,7.35036,2704.6,2704.2,0.04568578]
[1646858139699,0.441,2704.5,2704.2,0.04568578]
[1646858139898,1.92523,2704.4,2704.2,0.04568578]
[1646858140098,1.92523,2704.4,2704.3,1.57285588]
[1646858140501,3.0,2704.3,2704.1,0.0501]
[1646858140699,0.92528,2704.3,2704.1,0.0501]
[1646858140901,1.0,2704.3,2704.2,1.5368847]
[1646858141101,1.3,2704.3,2704.2,1.5368847]
[1646858141300,4.1505,2704.4,2704.2,1.5368847]
[1646858141502,1.92527,2704.4,2704.2,1.5368847]
[1646858141907,0.92527,2704.4,2704.2,1.5368847]
[1646858142337,0.92498,2704.7,2704.4,1.53344287]
[1646858142538,2.77556,2704.8,2704.5,1.5368847]
[1646858143141,0.92487,2705.0,2704.5,1.5368847]
[1646858143341,5.88565113,2705.3,2704.5,2.6821847]
[1646858143342,0.92478,2704.9,2704.5,2.6821847]
[1646858143544,1.84958,2705.1,2704.6,1.61129095]
[1646858143545,0.21062371,2705.1,2704.6,1.61129095]
[1646858143843,0.21062371,2705.1,2704.7,1.5368847]
[1646858144044,0.21062371,2705.1,2704.8,1.62243878]
[1646858144244,0.21062371,2705.1,2704.9,1.5368847]
[1646858144448,0.21062371,2705.1,2705.0,1.5368847]
[1646858144645,0.21062371,2705.1,2704.7,0.00410933]
[1646858144843,0.21062371,2705.1,2704.8,1.53668605]
[1646858145245,0.21062371,2705.1,2704.9,0.08258369]
[1646858145646,0.21062371,2705.1,2705.0,1.53660008]
[1646858145845,0.21062371,2705.1,2705.0,0.07297994]
[1646858145846,1.13545371,2705.1,2705.0,0.07297994]
[1646858146099,1.13545371,2705.1,2705.0,1.60958002]
[1646858146500,1.13545371,2705.1,2704.5,0.07829369]
[1646858146501,0.13545371,2705.1,2704.5,0.07829369]
[1646858146698,0.13545371,2705.1,2704.8,0.00397077]
[1646858147301,5.48503371,2705.1,2704.8,0.00397077]
[1646858147500,2.29103,2705.0,2704.8,0.00397077]
[1646858147701,1.92504,2704.9,2704.5,0.09016085]
[1646858147900,1.92504,2704.9,2704.4,1.53344287]
[1646858147901,0.441,2704.8,2704.4,1.53344287]
[1646858150141,0.441,2704.8,2704.5,1.53691205]
[1646858150348,0.441,2704.8,2704.5,0.00389505]
[1646858151143,0.441,2704.8,2704.4,1.53344287]
[1646858151547,0.441,2704.8,2704.5,0.00389503]
[1646858152348,0.441,2704.8,2704.4,1.53344287]
[1646858153793,0.441,2704.8,2704.5,1.53691428]
[1646858153994,0.441,2704.8,2704.5,1.54080956]
[1646858154905,0.441,2704.8,2704.5,1.53691428]
[1646858155094,0.441,2704.8,2704.5,1.54080954]
[1646858156095,2.29115,2704.8,2704.5,1.53691428]
[1646858156398,3.5162427,2704.8,2704.5,1.54080954]
[1646858156601,4.5162427,2704.8,2704.5,1.54080954]
[1646858156795,0.92508,2704.6,2704.5,1.54080954]
[1646858157240,3.77522,2704.7,2704.6,0.08263241]
[1646858157241,1.3,2704.7,2704.6,0.08263241]
[1646858157444,1.3,2704.7,2704.6,1.61954669]
[1646858157640,0.3,2704.8,2704.6,1.61957166]
[1646858157840,1.0,2705.0,2704.6,0.08263241]
[1646858158440,0.92492,2704.8,2704.6,0.08263241]
[1646858158645,0.92492,2704.8,2704.7,0.00389181]
[1646858159550,0.92492,2704.8,2704.6,0.08263241]
[1646858159950,0.92492,2704.8,2704.6,0.08652429]
[1646858160548,4.5,2704.7,2704.6,0.00389188]
[1646858160748,4.29136,2704.7,2704.6,0.00389188]
[1646858160998,4.29136,2704.7,2704.4,1.53344287]
[1646858161187,4.29136,2704.7,2704.6,0.00389253]
[1646858161390,3.29136,2704.7,2704.6,0.00389253]
[1646858161789,4.29136,2704.7,2704.6,0.00389253]
[1646858161989,5.21653,2704.7,2704.4,1.53344287]
[1646858162190,6.1417062,2704.7,2704.4,1.53344287]
[1646858162389,1.0,2704.5,2704.4,1.53344287]
[1646858162595,1.92516,2704.5,2704.4,1.53344287]
[1646858164197,1.954328,2704.5,2704.4,1.53344287]
[1646858164597,2.395328,2704.5,2704.4,1.53344287]
[1646858166645,2.36616,2704.5,2704.4,1.53344287]
[1646858167646,1.3,2704.6,2704.4,1.53344287]
[1646858167647,1.3,2704.6,2704.5,0.27336741]
[1646858167849,2.77553,2704.7,2704.5,1.81045261]
[1646858167850,4.07553,2704.7,2704.5,1.81045261]
[1646858168048,2.77553,2704.7,2704.5,0.27336741]
[1646858168246,3.77553,2704.7,2704.5,0.27336741]
[1646858168497,0.92496,2704.6,2704.5,0.27336741]
[1646858168893,0.92496,2704.6,2704.5,1.81028909]
[1646858172095,1.22496,2704.6,2704.5,0.27336741]
[1646858172941,2.22496,2704.6,2704.5,0.27336741]
[1646858174648,5.72496,2704.6,2704.5,0.27336741]
[1646858174844,7.16596,2704.6,2704.5,0.27336741]
[1646858175044,3.66596,2704.6,2704.5,0.27336741]
[1646858175260,7.16596,2704.6,2704.5,0.27336741]
[1646858175445,5.5,2704.5,2704.4,1.53344287]
[1646858175653,5.5,2704.5,2704.4,1.53731306]
[1646858175654,9.441,2704.5,2704.4,1.53731306]
[1646858175846,11.470168,2704.5,2704.4,1.53731306]
[1646858176095,11.470168,2704.5,2704.1,0.0501]
[1646858176293,12.395468,2704.5,2704.1,0.0501]
[1646858176594,1.9253,2704.2,2704.1,0.0501]
[1646858176795,2.2253,2704.2,2704.1,0.0501]
[1646858176997,2.6663,2704.2,2704.1,0.0501]
[1646858177195,3.6663,2704.2,2704.1,0.0501]
[1646858177394,3.6663,2704.2,2704.1,1.58742722]
[1646858179740,3.6663,2704.2,2704.1,1.04515673]
[1646858179940,3.6663,2704.2,2704.0,0.0305037]
[1646858180340,1.0,2704.1,2704.0,0.03460794]
[1646858180543,2.6663,2704.2,2704.0,0.03460794]
[1646858180945,1.0,2704.1,2704.0,0.03460794]
[1646858181345,1.0,2704.1,2704.0,0.0305037]
[1646858182547,5.5,2704.0,2703.9,0.03590552]
[1646858182746,10.741,2704.0,2703.9,0.04000982]
[1646858182945,10.741,2704.0,2703.7,0.06943404]
[1646858182946,5.5,2703.9,2703.7,0.06943404]
[1646858183145,6.86646,2703.9,2703.7,0.06943404]
[1646858183350,8.86646,2703.9,2703.7,0.06943404]
[1646858183593,3.36646,2703.9,2703.7,0.06943404]
[1646858183796,2.36646,2703.9,2703.7,0.06943404]
[1646858184092,3.36646,2703.9,2703.7,0.06943404]
[1646858184393,2.36646,2703.9,2703.7,0.06943404]
[1646858184593,3.36646,2703.9,2703.7,0.06943404]
[1646858184792,2.36646,2703.9,2703.7,0.06943404]
[1646858184993,3.36646,2703.9,2703.7,0.06943404]
[1646858185196,2.36646,2703.9,2703.7,0.06943404]
[1646858185393,3.36646,2703.9,2703.7,0.07340299]
[1646858186193,3.36646,2703.9,2703.7,0.06943404]
[1646858186597,2.36646,2703.9,2703.7,0.07340299]
[1646858186798,3.36646,2703.9,2703.7,0.07340299]
[1646858186996,2.36646,2703.9,2703.7,0.07340299]
[1646858187447,0.92546,2703.9,2703.7,0.06943404]
[1646858187648,0.92546,2703.9,2703.7,0.07340299]
[1646858188044,4.0763629,2704.0,2703.9,0.7143875]
[1646858188248,3.7763629,2704.0,2703.9,0.7143875]
[1646858188445,3.7763629,2704.0,2703.9,1.6921875]
[1646858188446,2.85091,2704.0,2703.9,1.6921875]
[1646858188653,0.92528,2704.1,2703.9,1.6921875]
[1646858189647,0.92528,2704.1,2704.0,1.0]
[1646858192696,3.0757491,2704.2,2704.0,1.0]
[1646858192901,1.2251991,2704.2,2704.0,1.0]
[1646858193098,2.2251991,2704.2,2704.0,1.0]
[1646858193402,1.92528,2704.1,2704.0,1.0]
[1646858194101,0.92528,2704.1,2704.0,1.0]
[1646858194746,5.42528,2704.1,2704.0,1.0]
[1646858194944,2.395448,2704.1,2704.0,1.0]
[1646858195143,3.395448,2704.1,2704.0,1.0]
[1646858195345,2.395448,2704.1,2704.0,1.0]
[1646858195548,6.895448,2704.1,2704.0,1.0]
[1646858195848,6.895448,2704.1,2703.9,0.7143875]
[1646858195849,1.85088,2704.0,2703.9,0.7143875]
[1646858196247,2.85088,2704.0,2703.9,0.7143875]
[1646858196746,3.85088,2704.0,2703.9,0.7143875]
[1646858198702,2.85088,2704.0,2703.9,0.7143875]
[1646858199104,2.51939926,2704.1,2703.9,0.7143875]
[1646858199296,1.954448,2704.1,2703.9,0.7143875]
[1646858199501,0.954448,2704.1,2703.9,0.7143875]
[1646858200501,0.954448,2704.1,2704.0,1.0]
[1646858200699,0.92528,2704.1,2704.0,1.0]
[1646858200899,0.92528,2704.1,2704.0,2.5372561]
[1646858201301,0.92528,2704.1,2704.0,1.0]
[1646858201902,0.92528,2704.1,2704.0,2.53724724]
[1646858203848,0.954448,2704.1,2704.0,1.0]
[1646858204049,1.954448,2704.1,2704.0,1.0]
[1646858204748,5.5,2704.0,2703.9,0.7143875]
[1646858204948,9.470168,2704.0,2703.8,0.01898713]
[1646858205147,3.5,2703.9,2703.8,0.01898713]
[1646858205348,5.5,2703.8,2703.7,0.06943404]
[1646858205552,10.36652,2703.8,2703.7,0.09966672]
[1646858205847,6.86652,2703.8,2703.7,0.09966672]
[1646858206098,3.36652,2703.8,2703.7,0.09966672]
[1646858206296,2.36652,2703.8,2703.7,0.09966672]
[1646858206499,3.36652,2703.8,2703.7,0.09966672]
[1646858206803,2.36652,2703.8,2703.7,0.09966672]
[1646858206998,3.36652,2703.8,2703.7,0.09966672]
[1646858207198,2.36652,2703.8,2703.7,0.09966672]
[1646858207398,3.36652,2703.8,2703.7,0.09966672]
[1646858207601,3.36652,2703.8,2703.7,1.63027258]
[1646858209105,2.36652,2703.8,2703.7,1.63027258]
[1646858209309,3.36652,2703.8,2703.7,1.63027258]
[1646858209505,2.36652,2703.8,2703.7,1.63025178]
[1646858209744,3.36652,2703.8,2703.7,1.63025178]
[1646858209943,3.36652,2703.8,2703.3,0.0235753]
[1646858209944,5.5,2703.7,2703.3,0.0235753]
[1646858210152,0.954768,2703.5,2703.4,1.571491]
[1646858210347,4.454768,2703.5,2703.4,0.03393256]
[1646858210548,5.5,2703.4,2703.1,0.01642069]
[1646858210747,0.441,2703.3,2703.2,1.53766753]
[1646858211152,1.441,2703.3,2703.2,1.53766753]
[1646858213152,4.941,2703.3,2703.2,1.53766753]
[1646858213353,4.941,2703.3,2702.6,0.08712062]
[1646858213354,6.46734733,2703.0,2702.6,0.08712062]
[1646858213608,6.46734733,2703.0,2702.4,0.02304627]
[1646858213609,0.029168,2702.8,2702.4,0.02304627]
[1646858213807,5.5,2702.6,2702.3,0.02304627]
[1646858214004,5.5,2702.6,2702.2,0.0368651]
[1646858214005,5.5,2702.4,2702.2,0.0368651]
[1646858214207,0.49441278,2702.3,2702.2,0.0368651]
[1646858214411,0.49441278,2702.3,2702.2,0.11208934]
[1646858214608,5.5,2702.2,2701.9,0.10080504]
[1646858214805,0.441,2702.1,2702.0,0.15122498]
[1646858215005,1.441,2702.1,2702.0,0.15122498]
[1646858215406,1.441,2702.1,2702.0,0.1523815]
[1646858216107,2.36706,2702.1,2702.0,0.1523815]
[1646858216308,2.36706,2702.1,2702.0,0.15122498]
[1646858216507,1.92606,2702.1,2702.0,0.15122498]
[1646858217344,0.92606,2702.1,2702.0,0.15122498]
[1646858217744,1.92606,2702.1,2702.0,0.15122498]
[1646858219949,1.92606,2702.1,2702.0,0.15750209]
[1646858220348,0.92606,2702.1,2702.0,0.15750209]
[1646858224943,0.92606,2702.1,2702.0,0.15540972]
[1646858228149,0.92606,2702.2,2702.0,0.15540972]
[1646858228350,0.92606,2702.2,2701.5,0.49797092]
[1646858228351,9.0,2702.1,2701.5,0.49797092]